[Event "GrandPrix_29.05"]
[Site "Chess.com"]
[Date "2020.05.29"]
[Round "2"]
[White "benko_008"]
[Black "Iljin_Timofey"]
[Result "0-1"]
[WhiteElo "2048"]
[BlackElo "2289"]
[TimeControl "600+2"]
[EndTime "9:55:32 PDT"]
[Termination "Iljin_Timofey won on time"]

1. Nf3 {[%clk 0:10:00.7]} 1... d5 {[%clk 0:09:59]} 2. d4 {[%clk 0:09:58.3]} 2...
Nf6 {[%clk 0:09:59.6]} 3. c4 {[%clk 0:09:57.6]} 3... e6 {[%clk 0:10:00.5]} 4.
Nc3 {[%clk 0:09:57.9]} 4... Bb4 {[%clk 0:10:00.5]} 5. cxd5 {[%clk 0:09:55.4]}
5... exd5 {[%clk 0:10:01.3]} 6. Bg5 {[%clk 0:09:55.4]} 6... h6 {[%clk
0:10:00.6]} 7. Bxf6 {[%clk 0:09:55.6]} 7... Qxf6 {[%clk 0:10:02.5]} 8. Qb3
{[%clk 0:09:52.7]} 8... Qb6 {[%clk 0:09:54.8]} 9. e3 {[%clk 0:09:31.2]} 9... c6
{[%clk 0:09:48.9]} 10. Bd3 {[%clk 0:09:22.9]} 10... O-O {[%clk 0:09:47.7]} 11.
h3 {[%clk 0:09:17.8]} 11... Be6 {[%clk 0:09:38.5]} 12. Qc2 {[%clk 0:09:13.2]}
12... Nd7 {[%clk 0:09:36.2]} 13. O-O {[%clk 0:08:55.6]} 13... Bd6 {[%clk
0:09:24.3]} 14. Bh7+ {[%clk 0:08:30.1]} 14... Kh8 {[%clk 0:09:24.3]} 15. Bf5
{[%clk 0:08:29.8]} 15... Rae8 {[%clk 0:09:18]} 16. Rab1 {[%clk 0:08:26]} 16...
a5 {[%clk 0:08:57.6]} 17. Na4 {[%clk 0:07:53]} 17... Qd8 {[%clk 0:08:55]} 18. a3
{[%clk 0:07:38.2]} 18... Qf6 {[%clk 0:08:38.6]} 19. Bxe6 {[%clk 0:07:30.5]}
19... fxe6 {[%clk 0:08:40.5]} 20. e4 {[%clk 0:07:17.9]} 20... Qg6 {[%clk
0:08:26.6]} 21. Nd2 {[%clk 0:07:01]} 21... Nf6 {[%clk 0:07:54.9]} 22. Nc3 {[%clk
0:06:53.1]} 22... Nh5 {[%clk 0:07:43.2]} 23. Ne2 {[%clk 0:06:30.4]} 23... Bf4
{[%clk 0:07:11.1]} 24. Rbd1 {[%clk 0:05:45.4]} 24... Bxd2 {[%clk 0:06:46.8]} 25.
Rxd2 {[%clk 0:05:46.1]} 25... dxe4 {[%clk 0:06:47.5]} 26. Qc3 {[%clk 0:05:37.1]}
26... Rf3 {[%clk 0:06:39.4]} 27. Qxa5 {[%clk 0:05:25.1]} 27... Ref8 {[%clk
0:06:39.5]} 28. Rdd1 {[%clk 0:04:09]} 28... Rxh3 {[%clk 0:06:09.2]} 29. Qe5
{[%clk 0:03:38.8]} 29... Qg4 {[%clk 0:03:53.3]} 30. Ng3 {[%clk 0:02:57.6]} 30...
Rh4 {[%clk 0:02:14.7]} 31. Rde1 {[%clk 0:02:11.4]} 31... Rf4 {[%clk 0:02:09.9]}
32. Re3 {[%clk 0:01:12.2]} 32... Nf6 {[%clk 0:01:21.2]} 33. Rfe1 {[%clk
0:00:41.6]} 33... Qg6 {[%clk 0:01:21.9]} 34. Qxe6 {[%clk 0:00:31.7]} 34... Kh7
{[%clk 0:01:19.3]} 35. b4 {[%clk 0:00:30.7]} 35... Rxf2 {[%clk 0:01:18.6]} 0-1

[Event "GrandPrix_29.05"]
[Site "Chess.com"]
[Date "2020.05.29"]
[Round "2"]
[White "Batica1984"]
[Black "MiroVlasenko"]
[Result "0-1"]
[WhiteElo "1827"]
[BlackElo "2497"]
[TimeControl "600+2"]
[EndTime "9:55:39 PDT"]
[Termination "MiroVlasenko won by resignation"]

1. e4 {[%clk 0:09:59.2]} 1... c5 {[%clk 0:09:58]} 2. Nf3 {[%clk 0:09:55.8]} 2...
a6 {[%clk 0:09:58.7]} 3. c4 {[%clk 0:09:48.6]} 3... e6 {[%clk 0:09:55]} 4. d4
{[%clk 0:09:47.3]} 4... cxd4 {[%clk 0:09:55.3]} 5. Nxd4 {[%clk 0:09:48.3]} 5...
Nf6 {[%clk 0:09:56.1]} 6. Nc3 {[%clk 0:09:48.8]} 6... d6 {[%clk 0:09:56]} 7. Be3
{[%clk 0:09:24.4]} 7... Be7 {[%clk 0:09:34.5]} 8. Be2 {[%clk 0:09:21.7]} 8...
Qc7 {[%clk 0:09:22.2]} 9. f4 {[%clk 0:09:18.3]} 9... b6 {[%clk 0:09:14]} 10. Bf3
{[%clk 0:09:09.4]} 10... Bb7 {[%clk 0:09:09.7]} 11. Rc1 {[%clk 0:09:08.7]} 11...
Nbd7 {[%clk 0:08:57.9]} 12. O-O {[%clk 0:08:50]} 12... Rc8 {[%clk 0:07:42.9]}
13. b3 {[%clk 0:07:23.4]} 13... Qb8 {[%clk 0:07:11.7]} 14. Qe2 {[%clk
0:07:02.1]} 14... Qa8 {[%clk 0:06:24.2]} 15. Bf2 {[%clk 0:06:56.7]} 15... Nc5
{[%clk 0:05:34.1]} 16. Rfe1 {[%clk 0:06:56.4]} 16... O-O {[%clk 0:05:29]} 17. b4
{[%clk 0:06:20.9]} 17... Ncd7 {[%clk 0:05:21.2]} 18. a3 {[%clk 0:06:12.6]} 18...
Rfe8 {[%clk 0:05:14.7]} 19. h3 {[%clk 0:05:52.1]} 19... Nf8 {[%clk 0:05:07.6]}
20. f5 {[%clk 0:04:49.7]} 20... N6d7 {[%clk 0:04:58.8]} 21. fxe6 {[%clk
0:04:35.7]} 21... fxe6 {[%clk 0:04:59]} 22. Bh5 {[%clk 0:04:25.4]} 22... g6
{[%clk 0:04:58.4]} 23. Bg4 {[%clk 0:04:25.9]} 23... Bg5 {[%clk 0:04:58.9]} 24.
Rc2 {[%clk 0:04:16]} 24... Ne5 {[%clk 0:04:58.1]} 25. Na4 {[%clk 0:04:16.3]}
25... Bd8 {[%clk 0:04:46.1]} 26. Bg3 {[%clk 0:04:01.9]} 26... b5 {[%clk
0:04:28.6]} 27. Nb2 {[%clk 0:03:55.4]} 27... bxc4 {[%clk 0:04:11]} 28. Nxc4
{[%clk 0:03:51.7]} 28... Nxc4 {[%clk 0:04:06]} 29. Rxc4 {[%clk 0:03:52.2]} 29...
Bb6 {[%clk 0:04:04.1]} 30. Bf2 {[%clk 0:03:49.5]} 30... Qa7 {[%clk 0:03:44.4]}
31. Rxc8 {[%clk 0:03:24.6]} 31... Bxc8 {[%clk 0:03:45.1]} 32. Rd1 {[%clk
0:03:10.4]} 32... Bd7 {[%clk 0:03:38.1]} 33. Rd2 {[%clk 0:02:50.1]} 33... Rc8
{[%clk 0:03:32.3]} 34. Kh2 {[%clk 0:02:38]} 34... Rc3 {[%clk 0:03:22.9]} 35. a4
{[%clk 0:01:49.1]} 35... Qb7 {[%clk 0:03:15.9]} 36. a5 {[%clk 0:01:47.1]} 36...
Bc7 {[%clk 0:03:16.3]} 37. b5 {[%clk 0:00:53.7]} 37... axb5 {[%clk 0:03:14.7]}
38. Ra2 {[%clk 0:00:54.3]} 38... d5+ {[%clk 0:03:10.9]} 39. e5 {[%clk
0:00:53.8]} 39... Qb8 {[%clk 0:03:01.2]} 40. Qd2 {[%clk 0:00:36.7]} 40... Bxe5+
{[%clk 0:02:55]} 41. Kg1 {[%clk 0:00:37.8]} 41... Qc7 {[%clk 0:02:52.3]} 42. a6
{[%clk 0:00:36.3]} 42... Rc1+ {[%clk 0:02:50.4]} 43. Bd1 {[%clk 0:00:36.7]}
43... Bf4 {[%clk 0:02:43.2]} 44. Qe2 {[%clk 0:00:31.4]} 44... Qc4 {[%clk
0:02:08.4]} 45. a7 {[%clk 0:00:11.8]} 45... Qxe2 {[%clk 0:02:06.7]} 46. Nxe2
{[%clk 0:00:06.8]} 46... Rxd1+ {[%clk 0:02:07.6]} 47. Be1 {[%clk 0:00:08.1]}
47... Be3+ {[%clk 0:02:02.2]} 48. Kf1 {[%clk 0:00:08.9]} 48... Bxa7 {[%clk
0:02:02.6]} 0-1

[Event "GrandPrix_29.05"]
[Site "Chess.com"]
[Date "2020.05.29"]
[Round "2"]
[White "Firegrizzly"]
[Black "KardashevskiyEvgeny"]
[Result "1-0"]
[WhiteElo "2368"]
[BlackElo "1943"]
[TimeControl "600+2"]
[EndTime "9:55:39 PDT"]
[Termination "Firegrizzly won on time"]

1. d4 {[%clk 0:10:01.9]} 1... d5 {[%clk 0:09:55.7]} 2. Bf4 {[%clk 0:10:01.6]}
2... Nf6 {[%clk 0:09:50.6]} 3. e3 {[%clk 0:09:57.5]} 3... e6 {[%clk 0:09:49.1]}
4. Nf3 {[%clk 0:09:56.2]} 4... Bd6 {[%clk 0:09:49]} 5. Bg3 {[%clk 0:09:56.2]}
5... O-O {[%clk 0:09:44.7]} 6. Nbd2 {[%clk 0:09:56.3]} 6... c5 {[%clk
0:09:36.5]} 7. c3 {[%clk 0:09:56.9]} 7... b6 {[%clk 0:09:33.5]} 8. Bd3 {[%clk
0:09:53.9]} 8... Ba6 {[%clk 0:09:23.6]} 9. Bxa6 {[%clk 0:09:52.9]} 9... Nxa6
{[%clk 0:09:19.8]} 10. Qe2 {[%clk 0:09:51.2]} 10... Nb8 {[%clk 0:09:15.8]} 11.
Bxd6 {[%clk 0:09:35.6]} 11... Qxd6 {[%clk 0:09:12.1]} 12. dxc5 {[%clk
0:09:36.5]} 12... Qxc5 {[%clk 0:08:45.1]} 13. O-O {[%clk 0:09:30.2]} 13... Nbd7
{[%clk 0:08:31]} 14. Rfd1 {[%clk 0:09:29]} 14... Rac8 {[%clk 0:08:13.1]} 15. h3
{[%clk 0:09:16.5]} 15... h6 {[%clk 0:08:07.3]} 16. Qa6 {[%clk 0:09:13.3]} 16...
Rfd8 {[%clk 0:07:31.2]} 17. a4 {[%clk 0:09:10.4]} 17... Qa5 {[%clk 0:07:19.2]}
18. Qe2 {[%clk 0:08:46.3]} 18... Qc5 {[%clk 0:07:03.2]} 19. Nd4 {[%clk
0:08:23.3]} 19... e5 {[%clk 0:06:45.4]} 20. Nf5 {[%clk 0:08:18.8]} 20... Nf8
{[%clk 0:06:07.4]} 21. Qf3 {[%clk 0:07:38.8]} 21... Kh7 {[%clk 0:05:48.9]} 22.
h4 {[%clk 0:04:57.7]} 22... Ng6 {[%clk 0:05:30.1]} 23. h5 {[%clk 0:04:56.9]}
23... Ne7 {[%clk 0:05:25.9]} 24. Ng3 {[%clk 0:04:51.2]} 24... e4 {[%clk
0:05:14.6]} 25. Qf4 {[%clk 0:04:51.2]} 25... Qc7 {[%clk 0:05:08.4]} 26. Qxc7
{[%clk 0:04:50.3]} 26... Rxc7 {[%clk 0:05:10.3]} 27. Ndxe4 {[%clk 0:04:46.6]}
27... Nxe4 {[%clk 0:05:00.3]} 28. Nxe4 {[%clk 0:04:46.5]} 28... Rc4 {[%clk
0:04:47]} 29. Ng3 {[%clk 0:04:41]} 29... a5 {[%clk 0:04:40.3]} 30. Rd3 {[%clk
0:04:32.2]} 30... Rdc8 {[%clk 0:03:47.6]} 31. f3 {[%clk 0:04:22.1]} 31... Rh4
{[%clk 0:03:33.5]} 32. Kf2 {[%clk 0:04:17.7]} 32... Rcc4 {[%clk 0:03:30.1]} 33.
b3 {[%clk 0:04:18.1]} 33... Rc6 {[%clk 0:03:26.4]} 34. Rc1 {[%clk 0:04:06]}
34... Kg8 {[%clk 0:03:23.5]} 35. Rd4 {[%clk 0:03:52.1]} 35... Rxd4 {[%clk
0:03:18.5]} 36. exd4 {[%clk 0:03:54]} 36... Kf8 {[%clk 0:03:15.4]} 37. Ke3
{[%clk 0:03:53.7]} 37... Ke8 {[%clk 0:03:12.3]} 38. Kd3 {[%clk 0:03:46.7]} 38...
Kd7 {[%clk 0:03:11.1]} 39. c4 {[%clk 0:03:41.1]} 39... Rf6 {[%clk 0:03:07.4]}
40. c5 {[%clk 0:03:40.1]} 40... Kc6 {[%clk 0:02:48.7]} 41. cxb6+ {[%clk
0:03:37.8]} 41... Kxb6 {[%clk 0:02:46.2]} 42. Rc5 {[%clk 0:03:39.3]} 42... Rf4
{[%clk 0:02:40.1]} 43. Rb5+ {[%clk 0:03:36.8]} 43... Ka6 {[%clk 0:02:38.5]} 44.
Ne2 {[%clk 0:03:27]} 44... Rh4 {[%clk 0:02:33.2]} 45. Rc5 {[%clk 0:03:04.2]}
45... Kb6 {[%clk 0:02:22.7]} 46. Rb5+ {[%clk 0:02:38.5]} 46... Ka6 {[%clk
0:02:21.6]} 47. b4 {[%clk 0:02:19.1]} 47... axb4 {[%clk 0:01:39.5]} 48. Nc1
{[%clk 0:02:19.6]} 1-0

[Event "GrandPrix_29.05"]
[Site "Chess.com"]
[Date "2020.05.29"]
[Round "2"]
[White "Sam_ChessMood"]
[Black "FLamps8"]
[Result "1-0"]
[WhiteElo "2448"]
[BlackElo "2133"]
[TimeControl "600+2"]
[EndTime "9:55:40 PDT"]
[Termination "Sam_ChessMood won by resignation"]

1. e4 {[%clk 0:10:01.9]} 1... c6 {[%clk 0:10:00.3]} 2. d4 {[%clk 0:09:59.4]}
2... d5 {[%clk 0:10:01.2]} 3. e5 {[%clk 0:10:00.5]} 3... Bf5 {[%clk 0:10:01.9]}
4. Nf3 {[%clk 0:09:59.4]} 4... e6 {[%clk 0:10:02.9]} 5. Be2 {[%clk 0:10:00.3]}
5... Nd7 {[%clk 0:10:02.9]} 6. O-O {[%clk 0:09:55.2]} 6... Ne7 {[%clk
0:10:02.7]} 7. c3 {[%clk 0:09:48.8]} 7... h6 {[%clk 0:09:58.3]} 8. Nbd2 {[%clk
0:09:09]} 8... g5 {[%clk 0:09:27.1]} 9. Re1 {[%clk 0:08:22.9]} 9... Ng6 {[%clk
0:08:32.8]} 10. Nf1 {[%clk 0:08:20.8]} 10... Nf4 {[%clk 0:07:06.5]} 11. Bxf4
{[%clk 0:07:27.4]} 11... gxf4 {[%clk 0:07:08.4]} 12. Qd2 {[%clk 0:07:01.6]}
12... h5 {[%clk 0:05:51.1]} 13. Qxf4 {[%clk 0:07:00.6]} 13... h4 {[%clk
0:04:48.3]} 14. Ne3 {[%clk 0:06:47.1]} 14... Bg6 {[%clk 0:03:51.1]} 15. Rad1
{[%clk 0:05:30.7]} 15... Be7 {[%clk 0:03:36.8]} 16. Bd3 {[%clk 0:04:20.6]} 16...
Nf8 {[%clk 0:03:31.6]} 17. Ng4 {[%clk 0:04:05.3]} 17... Bxd3 {[%clk 0:02:48.3]}
18. Rxd3 {[%clk 0:04:07.2]} 18... Ng6 {[%clk 0:02:49.6]} 19. Qd2 {[%clk
0:03:45.7]} 19... Qc7 {[%clk 0:02:35.1]} 20. h3 {[%clk 0:03:36.2]} 20... O-O-O
{[%clk 0:02:35.8]} 21. b4 {[%clk 0:03:28.8]} 21... Rh5 {[%clk 0:02:09.3]} 22. a4
{[%clk 0:03:22.9]} 22... Rf5 {[%clk 0:02:07.6]} 23. Nh6 {[%clk 0:02:26.6]} 23...
Rf4 {[%clk 0:01:37.2]} 24. g3 {[%clk 0:02:27.3]} 24... hxg3 {[%clk 0:01:23.2]}
25. fxg3 {[%clk 0:02:29.2]} 25... Bf8 {[%clk 0:00:17.7]} 26. gxf4 {[%clk
0:01:48]} 26... Bxh6 {[%clk 0:00:18.4]} 27. Ng5 {[%clk 0:01:49]} 27... Qe7
{[%clk 0:00:07.8]} 28. Rg3 {[%clk 0:01:44.3]} 28... Rg8 {[%clk 0:00:08.8]} 29.
Kh2 {[%clk 0:01:36]} 29... Nxf4 {[%clk 0:00:03.1]} 30. Qxf4 {[%clk 0:01:36.2]}
30... Rxg5 {[%clk 0:00:04.5]} 31. Rxg5 {[%clk 0:01:18.2]} 31... Bxg5 {[%clk
0:00:06.4]} 32. Qf3 {[%clk 0:01:17.7]} 32... Qf8 {[%clk 0:00:06.8]} 33. Rf1
{[%clk 0:01:02.7]} 33... f5 {[%clk 0:00:03.1]} 34. exf6 {[%clk 0:01:02.5]} 34...
Qd6+ {[%clk 0:00:03.7]} 35. Qg3 {[%clk 0:01:01.8]} 1-0

[Event "GrandPrix_29.05"]
[Site "Chess.com"]
[Date "2020.05.29"]
[Round "2"]
[White "abraham1982"]
[Black "GoltsevDmitry2000"]
[Result "1-0"]
[WhiteElo "2322"]
[BlackElo "2198"]
[TimeControl "600+2"]
[EndTime "9:55:41 PDT"]
[Termination "abraham1982 won on time"]

1. e4 {[%clk 0:09:58.7]} 1... c5 {[%clk 0:09:54]} 2. Nf3 {[%clk 0:09:45.6]} 2...
e6 {[%clk 0:09:54.1]} 3. c3 {[%clk 0:09:44.9]} 3... Nc6 {[%clk 0:09:54.3]} 4. d4
{[%clk 0:09:41.8]} 4... cxd4 {[%clk 0:09:56.2]} 5. cxd4 {[%clk 0:09:41.2]} 5...
d5 {[%clk 0:09:57]} 6. exd5 {[%clk 0:09:37.6]} 6... exd5 {[%clk 0:09:55]} 7. Nc3
{[%clk 0:09:36.7]} 7... f6 {[%clk 0:09:55.3]} 8. Bd3 {[%clk 0:09:30.4]} 8... Bb4
{[%clk 0:09:51.4]} 9. O-O {[%clk 0:09:26.3]} 9... Nge7 {[%clk 0:09:52.4]} 10.
Qc2 {[%clk 0:09:20.8]} 10... Bg4 {[%clk 0:09:45.2]} 11. a3 {[%clk 0:09:07.4]}
11... Bxf3 {[%clk 0:09:38]} 12. axb4 {[%clk 0:09:04.8]} 12... Bh5 {[%clk
0:07:42.4]} 13. b5 {[%clk 0:08:53.8]} 13... Nb4 {[%clk 0:07:27.9]} 14. Qd2
{[%clk 0:08:34.7]} 14... Nxd3 {[%clk 0:07:27.8]} 15. Qxd3 {[%clk 0:08:35]} 15...
O-O {[%clk 0:07:26.2]} 16. Bf4 {[%clk 0:08:27.5]} 16... Qd7 {[%clk 0:06:59.4]}
17. Ra3 {[%clk 0:08:14.2]} 17... g5 {[%clk 0:05:48.2]} 18. Bg3 {[%clk
0:08:09.1]} 18... Bg6 {[%clk 0:05:48.2]} 19. Qd2 {[%clk 0:08:04.1]} 19... Nf5
{[%clk 0:05:31.9]} 20. Rfa1 {[%clk 0:07:57.3]} 20... h5 {[%clk 0:05:27]} 21. f3
{[%clk 0:07:44.8]} 21... b6 {[%clk 0:05:14.4]} 22. Bf2 {[%clk 0:07:12.9]} 22...
Nd6 {[%clk 0:04:58.5]} 23. Qe2 {[%clk 0:07:00]} 23... Nc4 {[%clk 0:04:29.8]} 24.
R3a2 {[%clk 0:06:48.3]} 24... Rfe8 {[%clk 0:04:28.3]} 25. Qf1 {[%clk 0:06:45.1]}
25... Bc2 {[%clk 0:04:06.5]} 26. Qc1 {[%clk 0:06:00.6]} 26... Bb3 {[%clk
0:03:45.7]} 27. Ra6 {[%clk 0:05:53]} 27... Re7 {[%clk 0:03:46.4]} 28. h4 {[%clk
0:05:40.2]} 28... Qf5 {[%clk 0:03:44.7]} 29. hxg5 {[%clk 0:05:31.9]} 29... fxg5
{[%clk 0:03:46.6]} 30. Qb1 {[%clk 0:05:17.3]} 30... Qxb1+ {[%clk 0:02:49.8]} 31.
Rxb1 {[%clk 0:05:12.7]} 31... Rd8 {[%clk 0:02:39.2]} 32. f4 {[%clk 0:04:25]}
32... Kg7 {[%clk 0:01:38.3]} 33. fxg5 {[%clk 0:04:15.1]} 33... Kg6 {[%clk
0:01:37.5]} 34. Rba1 {[%clk 0:04:01.8]} 34... Rdd7 {[%clk 0:01:34.5]} 35. Bg3
{[%clk 0:03:59.8]} 35... Kxg5 {[%clk 0:01:14.4]} 36. Bb8 {[%clk 0:03:55.8]}
36... Na5 {[%clk 0:01:14.5]} 37. Ra3 {[%clk 0:03:51.5]} 37... Re1+ {[%clk
0:00:21.3]} 38. Kh2 {[%clk 0:03:45]} 38... Rf7 {[%clk 0:00:19]} 39. R6xa5 {[%clk
0:03:40.6]} 39... bxa5 {[%clk 0:00:18.9]} 40. Rxb3 {[%clk 0:03:39.7]} 40... Rff1
{[%clk 0:00:19.4]} 41. Kh3 {[%clk 0:02:14.1]} 41... h4 {[%clk 0:00:07.5]} 42.
Nxd5 {[%clk 0:02:06.5]} 42... Rh1+ {[%clk 0:00:06.8]} 43. Bh2 {[%clk 0:02:03.7]}
43... Re4 {[%clk 0:00:06.7]} 44. Rd3 {[%clk 0:01:52.4]} 44... Rb1 {[%clk
0:00:04.1]} 45. Nc3 {[%clk 0:01:50.2]} 1-0

[Event "GrandPrix_29.05"]
[Site "Chess.com"]
[Date "2020.05.29"]
[Round "2"]
[White "2346PL"]
[Black "Nitzan_Steinberg"]
[Result "0-1"]
[WhiteElo "2089"]
[BlackElo "2414"]
[TimeControl "600+2"]
[EndTime "9:55:45 PDT"]
[Termination "Nitzan_Steinberg won by resignation"]

1. d4 {[%clk 0:10:01.9]} 1... d5 {[%clk 0:09:58.8]} 2. Nf3 {[%clk 0:10:02.3]}
2... Nf6 {[%clk 0:09:59.5]} 3. c3 {[%clk 0:10:02.7]} 3... Bf5 {[%clk 0:09:57.8]}
4. Qb3 {[%clk 0:10:02.6]} 4... Qc8 {[%clk 0:09:57.6]} 5. Bg5 {[%clk 0:09:59.2]}
5... Nbd7 {[%clk 0:09:54.2]} 6. Nbd2 {[%clk 0:09:58]} 6... h6 {[%clk 0:09:52.2]}
7. Bxf6 {[%clk 0:09:58.3]} 7... Nxf6 {[%clk 0:09:52.9]} 8. e3 {[%clk 0:09:56.5]}
8... e6 {[%clk 0:09:54]} 9. c4 {[%clk 0:09:53.6]} 9... c6 {[%clk 0:09:51.4]} 10.
Be2 {[%clk 0:09:48.7]} 10... Bd6 {[%clk 0:09:51.6]} 11. O-O {[%clk 0:09:46]}
11... O-O {[%clk 0:09:52.2]} 12. Bd3 {[%clk 0:09:45.2]} 12... Re8 {[%clk
0:09:35.9]} 13. cxd5 {[%clk 0:09:18]} 13... Bxd3 {[%clk 0:09:27.6]} 14. Qxd3
{[%clk 0:09:16.8]} 14... exd5 {[%clk 0:09:28.5]} 15. a3 {[%clk 0:09:08.9]} 15...
a5 {[%clk 0:09:25]} 16. Qc2 {[%clk 0:08:47.6]} 16... g6 {[%clk 0:09:01.1]} 17.
h3 {[%clk 0:08:46.7]} 17... Kg7 {[%clk 0:09:00.5]} 18. Ne1 {[%clk 0:08:43.7]}
18... h5 {[%clk 0:08:47.5]} 19. Rc1 {[%clk 0:08:39.9]} 19... Bb8 {[%clk
0:08:15.5]} 20. Qd3 {[%clk 0:07:15.2]} 20... Qc7 {[%clk 0:07:56.1]} 21. f4
{[%clk 0:07:14.4]} 21... Ne4 {[%clk 0:07:43.8]} 22. Nxe4 {[%clk 0:07:13]} 22...
Rxe4 {[%clk 0:07:39.4]} 23. Nf3 {[%clk 0:07:13]} 23... Qe7 {[%clk 0:07:36.2]}
24. Rce1 {[%clk 0:07:05.5]} 24... Qf6 {[%clk 0:07:12.8]} 25. Ne5 {[%clk
0:06:14.1]} 25... Bd6 {[%clk 0:06:54.2]} 26. Qb3 {[%clk 0:05:52.9]} 26... Qe7
{[%clk 0:06:53.4]} 27. Rf3 {[%clk 0:05:21.1]} 27... f6 {[%clk 0:06:36.1]} 28.
Nd3 {[%clk 0:05:20.1]} 28... Re8 {[%clk 0:06:36.5]} 29. Qc3 {[%clk 0:04:28.5]}
29... Qc7 {[%clk 0:06:27.1]} 30. Nc5 {[%clk 0:03:47.6]} 30... R4e7 {[%clk
0:06:26.5]} 31. f5 {[%clk 0:03:46.2]} 31... Bxc5 {[%clk 0:06:26.3]} 32. Qxc5
{[%clk 0:03:46.7]} 32... g5 {[%clk 0:06:26.5]} 33. b4 {[%clk 0:03:20.7]} 33...
axb4 {[%clk 0:06:22.6]} 34. axb4 {[%clk 0:03:21.5]} 34... Re4 {[%clk 0:06:17.3]}
35. b5 {[%clk 0:02:59.3]} 35... g4 {[%clk 0:06:14]} 36. hxg4 {[%clk 0:02:57.2]}
36... hxg4 {[%clk 0:06:14.1]} 37. Rff1 {[%clk 0:02:53.4]} 37... Qg3 {[%clk
0:05:25.7]} 38. bxc6 {[%clk 0:02:37.6]} 38... Rxe3 {[%clk 0:05:25.7]} 39. Rb1
{[%clk 0:01:44.7]} 39... Re2 {[%clk 0:04:17.1]} 40. Rxb7+ {[%clk 0:01:44.5]}
40... Kh6 {[%clk 0:04:17.1]} 41. Qxd5 {[%clk 0:01:44.8]} 41... Qe3+ {[%clk
0:04:17.2]} 42. Kh1 {[%clk 0:01:41.9]} 42... Rh8 {[%clk 0:04:16.7]} 43. Rh7+
{[%clk 0:01:07.2]} 43... Rxh7 {[%clk 0:04:14.7]} 44. Qg8 {[%clk 0:01:07]} 44...
Qg5 {[%clk 0:03:19.8]} 45. Qf8+ {[%clk 0:01:06]} 45... Qg7 {[%clk 0:03:14.2]}
46. Qb8 {[%clk 0:00:58.6]} 46... Qc7 {[%clk 0:03:07.4]} 47. Qg8 {[%clk
0:00:29.6]} 47... Qf7 {[%clk 0:02:41.7]} 48. Qxg4 {[%clk 0:00:21.2]} 48... Qh5+
{[%clk 0:02:42.2]} 49. Qxh5+ {[%clk 0:00:21.6]} 49... Kxh5 {[%clk 0:02:44.1]}
50. Rc1 {[%clk 0:00:19.4]} 50... Rc7 {[%clk 0:02:43.8]} 51. d5 {[%clk 0:00:19]}
51... Rd2 {[%clk 0:02:43.8]} 52. Rc5 {[%clk 0:00:19.7]} 52... Kg4 {[%clk
0:02:41]} 53. Kh2 {[%clk 0:00:20]} 53... Kf4 {[%clk 0:02:35.8]} 54. Rb5 {[%clk
0:00:19.5]} 54... Ke4 {[%clk 0:02:31.3]} 55. Rb7 {[%clk 0:00:03.5]} 55... Rxb7
{[%clk 0:02:31.8]} 56. cxb7 {[%clk 0:00:04.7]} 56... Rb2 {[%clk 0:02:32.9]} 0-1

[Event "GrandPrix_29.05"]
[Site "Chess.com"]
[Date "2020.05.29"]
[Round "2"]
[White "Robert_Chessmood"]
[Black "Gareth-Bale11"]
[Result "0-1"]
[WhiteElo "1888"]
[BlackElo "2345"]
[TimeControl "600+2"]
[EndTime "9:55:48 PDT"]
[Termination "Gareth-Bale11 won by resignation"]

1. e4 {[%clk 0:10:01.9]} 1... e5 {[%clk 0:09:58.9]} 2. Nf3 {[%clk 0:10:01.8]}
2... Nc6 {[%clk 0:10:00]} 3. Bb5 {[%clk 0:10:02.8]} 3... a6 {[%clk 0:10:01.3]}
4. Ba4 {[%clk 0:10:04]} 4... Nf6 {[%clk 0:10:02.7]} 5. O-O {[%clk 0:10:05]} 5...
Be7 {[%clk 0:10:04.2]} 6. Bxc6 {[%clk 0:10:06.4]} 6... dxc6 {[%clk 0:10:05.1]}
7. d3 {[%clk 0:10:07.8]} 7... Bd6 {[%clk 0:09:59.1]} 8. Bg5 {[%clk 0:10:05.4]}
8... h6 {[%clk 0:09:58.5]} 9. Bh4 {[%clk 0:10:06.5]} 9... Be6 {[%clk 0:09:51.3]}
10. Re1 {[%clk 0:09:40.7]} 10... Qe7 {[%clk 0:09:23.7]} 11. d4 {[%clk
0:09:29.9]} 11... O-O-O {[%clk 0:09:03]} 12. Nbd2 {[%clk 0:09:19.7]} 12... g5
{[%clk 0:08:26.5]} 13. Bg3 {[%clk 0:09:19.2]} 13... Nh5 {[%clk 0:07:57.1]} 14.
Qe2 {[%clk 0:08:10.6]} 14... exd4 {[%clk 0:07:29.8]} 15. Nc4 {[%clk 0:07:32]}
15... Nxg3 {[%clk 0:07:11.3]} 16. hxg3 {[%clk 0:07:33.9]} 16... Bc5 {[%clk
0:06:53.9]} 17. a3 {[%clk 0:07:09.3]} 17... f6 {[%clk 0:06:38.2]} 18. b4 {[%clk
0:07:08.2]} 18... Ba7 {[%clk 0:06:31.2]} 19. Na5 {[%clk 0:06:58]} 19... h5
{[%clk 0:05:59]} 20. Rab1 {[%clk 0:06:24.5]} 20... h4 {[%clk 0:05:59]} 21. Nxc6
{[%clk 0:05:55.4]} 21... bxc6 {[%clk 0:05:19.9]} 22. Qxa6+ {[%clk 0:05:56]}
22... Kb8 {[%clk 0:05:15.4]} 23. b5 {[%clk 0:05:56.6]} 23... c5 {[%clk
0:04:35.7]} 24. b6 {[%clk 0:05:49]} 24... cxb6 {[%clk 0:04:19.5]} 25. Rxb6+
{[%clk 0:05:49.2]} 25... Bxb6 {[%clk 0:04:20.7]} 26. Qxb6+ {[%clk 0:05:51.1]}
26... Ka8 {[%clk 0:03:41.7]} 27. Qa6+ {[%clk 0:05:18.8]} 27... Qa7 {[%clk
0:03:39.1]} 28. Qxe6 {[%clk 0:05:20.1]} 28... hxg3 {[%clk 0:03:31.9]} 29. Rb1
{[%clk 0:04:08.7]} 29... Rb8 {[%clk 0:03:25.4]} 30. Qc6+ {[%clk 0:04:04.3]}
30... Rb7 {[%clk 0:03:26.6]} 31. Nd2 {[%clk 0:03:30.4]} 31... d3 {[%clk
0:01:34.5]} 32. cxd3 {[%clk 0:02:41.4]} 32... c4 {[%clk 0:01:23.5]} 33. Qxb7+
{[%clk 0:02:05.7]} 33... Qxb7 {[%clk 0:01:23.3]} 34. Rxb7 {[%clk 0:02:07.6]}
34... c3 {[%clk 0:01:13.5]} 35. Rb1 {[%clk 0:00:11.6]} 35... cxd2 {[%clk
0:01:12.7]} 36. Rd1 {[%clk 0:00:06.7]} 36... Rc8 {[%clk 0:01:11.3]} 37. Kf1
{[%clk 0:00:05.3]} 37... Rc1 {[%clk 0:01:10.8]} 38. fxg3 {[%clk 0:00:04.8]}
38... Rxd1+ {[%clk 0:01:10.1]} 0-1